[Event "Titled Tuesday Blitz January 17 Early 2023"]
[White "Tarlabasi, Emirhan"]
[Black "Gatterer, Florian"]
[WhiteFideId "6350275"]
[BlackFideId "811688"]
[WhiteElo "2300"]
[BlackElo "2170"]
[Result "1-0"]
[Round "04"]
[TimeControl "180+2"]
[Date "2023.01.17"]
[WhiteClock "0:00:15"]
[BlackClock "0:00:08"]

1. d4 {[%clk 0:03:00]}  d5 {[%clk 0:02:58]} 2. c4 {[%clk 0:03:01]}  c6 {[%clk 0:02:59]} 3. g3 {[%clk 0:03:01]}  Nf6 {[%clk 0:02:58]} 4. Nd2 {[%clk 0:02:56]}  g6 {[%clk 0:02:57]} 5. Bg2 {[%clk 0:02:56]}  Bg7 {[%clk 0:02:57]} 6. Ngf3 {[%clk 0:02:57]}  O-O {[%clk 0:02:58]} 7. O-O {[%clk 0:02:57]}  Bf5 {[%clk 0:02:58]} 8. Qb3 {[%clk 0:02:57]}  Qb6 {[%clk 0:02:55]} 9. cxd5 {[%clk 0:02:53]}  Qxb3 {[%clk 0:02:50]} 10. Nxb3 {[%clk 0:02:52]}  cxd5 {[%clk 0:02:49]} 11. Bf4 {[%clk 0:02:48]}  Nc6 {[%clk 0:02:44]} 12. Rfc1 {[%clk 0:02:43]}  Nh5 {[%clk 0:02:34]} 13. Be3 {[%clk 0:02:36]}  Nb4 {[%clk 0:02:34]} 14. Ne1 {[%clk 0:02:33]}  Nf6 {[%clk 0:02:28]} 15. Rc7 {[%clk 0:02:31]}  b6 {[%clk 0:01:43]} 16. a3 {[%clk 0:02:15]}  Na6 {[%clk 0:01:39]} 17. Rxe7 {[%clk 0:02:16]}  Rfc8 {[%clk 0:01:28]} 18. Bg5 {[%clk 0:01:50]}  Ne4 {[%clk 0:01:24]} 19. Bxe4 {[%clk 0:01:40]}  Bxe4 {[%clk 0:01:24]} 20. f3 {[%clk 0:01:39]}  Bf5 {[%clk 0:01:24]} 21. e4 {[%clk 0:01:06]}  Be6 {[%clk 0:01:23]} 22. e5 {[%clk 0:01:02]}  Bf8 {[%clk 0:01:16]} 23. Rb7 {[%clk 0:01:01]}  Bf5 {[%clk 0:01:08]} 24. Rc1 {[%clk 0:00:51]}  Rxc1 {[%clk 0:01:04]} 25. Nxc1 {[%clk 0:00:51]}  Bc8 {[%clk 0:01:04]} 26. Re7 {[%clk 0:00:46]}  Bxe7 {[%clk 0:01:03]} 27. Bxe7 {[%clk 0:00:47]}  Bf5 {[%clk 0:01:00]} 28. Bd6 {[%clk 0:00:45]}  Rc8 {[%clk 0:01:00]} 29. Ne2 {[%clk 0:00:41]}  Nc7 {[%clk 0:00:57]} 30. g4 {[%clk 0:00:40]}  Be6 {[%clk 0:00:57]} 31. Nc3 {[%clk 0:00:34]}  Ne8 {[%clk 0:00:48]} 32. Be7 {[%clk 0:00:33]}  Rc7 {[%clk 0:00:43]} 33. Bg5 {[%clk 0:00:34]}  a6 {[%clk 0:00:42]} 34. Nd3 {[%clk 0:00:34]}  Rc4 {[%clk 0:00:37]} 35. Be3 {[%clk 0:00:32]}  Nc7 {[%clk 0:00:34]} 36. Nb4 {[%clk 0:00:18]}  a5 {[%clk 0:00:26]} 37. Nba2 {[%clk 0:00:18]}  Rc6 {[%clk 0:00:23]} 38. Kf2 {[%clk 0:00:17]}  b5 {[%clk 0:00:24]} 39. Ke2 {[%clk 0:00:16]}  Rb6 {[%clk 0:00:24]} 40. b4 {[%clk 0:00:16]}  axb4 {[%clk 0:00:24]} 41. Nxb4 {[%clk 0:00:17]}  Rb8 {[%clk 0:00:20]} 42. Kd3 {[%clk 0:00:17]}  Ra8 {[%clk 0:00:21]} 43. Nb1 {[%clk 0:00:16]}  Na6 {[%clk 0:00:20]} 44. Nc2 {[%clk 0:00:17]}  Rb8 {[%clk 0:00:19]} 45. Bd2 {[%clk 0:00:16]}  Nc7 {[%clk 0:00:17]} 46. Bb4 {[%clk 0:00:13]}  Na6 {[%clk 0:00:15]} 47. Nc3 {[%clk 0:00:11]}  Nxb4+ {[%clk 0:00:14]} 48. Nxb4 {[%clk 0:00:12]}  Ra8 {[%clk 0:00:13]} 49. Nxb5 {[%clk 0:00:12]}  Bd7 {[%clk 0:00:13]} 50. Nc7 {[%clk 0:00:11]}  Rxa3+ {[%clk 0:00:12]} 51. Ke2 {[%clk 0:00:11]}  Be6 {[%clk 0:00:12]} 52. Ncxd5 {[%clk 0:00:11]}  Bxd5 {[%clk 0:00:12]} 53. Nxd5 {[%clk 0:00:11]}  Ra4 {[%clk 0:00:12]} 54. Nf6+ {[%clk 0:00:11]}  Kg7 {[%clk 0:00:11]} 55. Ke3 {[%clk 0:00:12]}  h6 {[%clk 0:00:11]} 56. h4 {[%clk 0:00:12]}  Ra3+ {[%clk 0:00:11]} 57. Ke4 {[%clk 0:00:12]}  Ra4 {[%clk 0:00:12]} 58. g5 {[%clk 0:00:13]}  hxg5 {[%clk 0:00:11]} 59. hxg5 {[%clk 0:00:14]}  Rb4 {[%clk 0:00:12]} 60. Kd5 {[%clk 0:00:14]}  Rb5+ {[%clk 0:00:11]} 61. Kd6 {[%clk 0:00:15]}  Rb4 {[%clk 0:00:11]} 62. d5 {[%clk 0:00:15]}  Rf4 {[%clk 0:00:11]} 63. Ke7 {[%clk 0:00:15]}  Rxf3 {[%clk 0:00:12]} 64. d6 {[%clk 0:00:15]}  Re3 {[%clk 0:00:11]} 65. Ng4 {[%clk 0:00:15]}  Re4 {[%clk 0:00:08]} 66. d7 {[%clk 0:00:15]}  Rd4 {[%clk 0:00:08]} 67. d8=Q {[%clk 0:00:15]} 1-0


[Site "https://www.chess.com"]

[Event "Titled Tuesday Blitz January 17 Early 2023"]
[White "Luong Phuong Hanh"]
[Black "Djokovic, Nebojsa"]
[WhiteFideId "12401013"]
[BlackFideId "938300"]
[WhiteElo "2029"]
[BlackElo "2119"]
[Result "0-1"]
[Round "04"]
[TimeControl "180+2"]
[Date "2023.01.17"]
[WhiteClock "0:00:12"]
[BlackClock "0:00:05"]

1. d4 {[%clk 0:02:53]}  e6 {[%clk 0:02:58]} 2. Nf3 {[%clk 0:02:52]}  Nf6 {[%clk 0:02:59]} 3. e3 {[%clk 0:02:43]}  d5 {[%clk 0:03:00]} 4. Bd3 {[%clk 0:02:44]}  c5 {[%clk 0:02:59]} 5. O-O {[%clk 0:02:45]}  Bd6 {[%clk 0:02:58]} 6. b3 {[%clk 0:02:46]}  O-O {[%clk 0:02:58]} 7. Bb2 {[%clk 0:02:46]}  Nbd7 {[%clk 0:02:58]} 8. Nbd2 {[%clk 0:02:46]}  b6 {[%clk 0:02:57]} 9. Ne5 {[%clk 0:02:47]}  Bb7 {[%clk 0:02:56]} 10. Qf3 {[%clk 0:02:47]}  Qc7 {[%clk 0:02:49]} 11. Nxd7 {[%clk 0:02:37]}  Nxd7 {[%clk 0:02:41]} 12. Qh3 {[%clk 0:02:37]}  h6 {[%clk 0:02:37]} 13. Rac1 {[%clk 0:02:16]}  Rac8 {[%clk 0:02:15]} 14. c4 {[%clk 0:02:13]}  Qd8 {[%clk 0:02:13]} 15. cxd5 {[%clk 0:02:06]}  Bxd5 {[%clk 0:02:02]} 16. Be4 {[%clk 0:01:55]}  Bxe4 {[%clk 0:01:32]} 17. Nxe4 {[%clk 0:01:55]}  Be7 {[%clk 0:01:31]} 18. Rfd1 {[%clk 0:01:48]}  cxd4 {[%clk 0:01:17]} 19. Rxc8 {[%clk 0:01:47]}  Qxc8 {[%clk 0:01:18]} 20. Bxd4 {[%clk 0:01:47]}  Rd8 {[%clk 0:01:04]} 21. Qg3 {[%clk 0:01:25]}  e5 {[%clk 0:00:53]} 22. Ba1 {[%clk 0:01:17]}  Qc2 {[%clk 0:00:45]} 23. Nc3 {[%clk 0:01:16]}  Nf6 {[%clk 0:00:28]} 24. Rf1 {[%clk 0:01:14]}  Bd6 {[%clk 0:00:15]} 25. Nb5 {[%clk 0:01:01]}  Ne4 {[%clk 0:00:08]} 26. Qh4 {[%clk 0:01:00]}  f6 {[%clk 0:00:02]} 27. h3 {[%clk 0:00:57]}  Nd2 {[%clk 0:00:03]} 28. Re1 {[%clk 0:00:46]}  Bf8 {[%clk 0:00:03]} 29. Qa4 {[%clk 0:00:34]}  a5 {[%clk 0:00:03]} 30. Bc3 {[%clk 0:00:31]}  Ne4 {[%clk 0:00:03]} 31. Qc4+ {[%clk 0:00:30]}  Kh8 {[%clk 0:00:01]} 32. Qc7 {[%clk 0:00:29]}  Qxf2+ {[%clk 0:00:01]} 33. Kh2 {[%clk 0:00:29]}  Re8 {[%clk 0:00:02]} 34. Qd7 {[%clk 0:00:23]}  Qg3+ {[%clk 0:00:02]} 35. Kg1 {[%clk 0:00:22]}  Ra8 {[%clk 0:00:03]} 36. Qd5 {[%clk 0:00:18]}  Nxc3 {[%clk 0:00:02]} 37. Qxa8 {[%clk 0:00:15]}  Qxe1+ {[%clk 0:00:02]} 38. Kh2 {[%clk 0:00:15]}  Ne2 {[%clk 0:00:03]} 39. Qxf8+ {[%clk 0:00:15]}  Kh7 {[%clk 0:00:04]} 40. h4 {[%clk 0:00:14]}  Qg3+ {[%clk 0:00:04]} 41. Kh1 {[%clk 0:00:12]}  Qxh4# {[%clk 0:00:05]} 0-1


[Site "https://www.chess.com"]

[Event "Titled Tuesday Blitz January 17 Early 2023"]
[White "Bodnaruk, Anastasia"]
[Black "Rian, Kapriaga"]
[WhiteFideId "4181751"]
[BlackFideId "7103263"]
[WhiteElo "2350"]
[BlackElo "2089"]
[Result "1-0"]
[Round "04"]
[TimeControl "180+2"]
[Date "2023.01.17"]
[WhiteClock "0:00:06"]
[BlackClock "0:00:05"]

1. e4 {[%clk 0:03:00]}  c6 {[%clk 0:02:59]} 2. d4 {[%clk 0:03:00]}  d5 {[%clk 0:02:59]} 3. e5 {[%clk 0:03:01]}  c5 {[%clk 0:02:59]} 4. dxc5 {[%clk 0:02:57]}  e6 {[%clk 0:02:59]} 5. a3 {[%clk 0:02:57]}  Bxc5 {[%clk 0:02:57]} 6. b4 {[%clk 0:02:56]}  Be7 {[%clk 0:02:57]} 7. Bd3 {[%clk 0:02:53]}  Nc6 {[%clk 0:02:54]} 8. Bb2 {[%clk 0:02:53]}  f5 {[%clk 0:02:49]} 9. Ne2 {[%clk 0:02:30]}  Bd7 {[%clk 0:02:45]} 10. O-O {[%clk 0:02:16]}  Nh6 {[%clk 0:02:44]} 11. Nd4 {[%clk 0:02:17]}  Nxd4 {[%clk 0:02:41]} 12. Bxd4 {[%clk 0:02:16]}  O-O {[%clk 0:02:39]} 13. c4 {[%clk 0:02:12]}  dxc4 {[%clk 0:02:05]} 14. Bxc4 {[%clk 0:02:12]}  b6 {[%clk 0:02:00]} 15. Qb3 {[%clk 0:01:56]}  Kh8 {[%clk 0:01:51]} 16. Rd1 {[%clk 0:01:50]}  Qb8 {[%clk 0:01:45]} 17. Bxe6 {[%clk 0:01:43]}  Bc6 {[%clk 0:01:41]} 18. b5 {[%clk 0:01:33]}  Bb7 {[%clk 0:01:37]} 19. Nc3 {[%clk 0:01:31]}  Ng4 {[%clk 0:01:35]} 20. Nd5 {[%clk 0:01:20]}  Bc5 {[%clk 0:01:28]} 21. Bxc5 {[%clk 0:01:19]}  bxc5 {[%clk 0:01:29]} 22. f4 {[%clk 0:00:52]}  c4 {[%clk 0:01:27]} 23. Qxc4 {[%clk 0:00:29]}  Bxd5 {[%clk 0:01:24]} 24. Bxd5 {[%clk 0:00:27]}  Ne3 {[%clk 0:00:54]} 25. Qc5 {[%clk 0:00:19]}  Nxd1 {[%clk 0:00:49]} 26. Rxd1 {[%clk 0:00:20]}  Qc8 {[%clk 0:00:41]} 27. Bc6 {[%clk 0:00:20]}  Rb8 {[%clk 0:00:29]} 28. Rd6 {[%clk 0:00:20]}  Qc7 {[%clk 0:00:24]} 29. e6 {[%clk 0:00:16]}  Qe7 {[%clk 0:00:23]} 30. Qe5 {[%clk 0:00:12]}  Rbd8 {[%clk 0:00:20]} 31. Bd7 {[%clk 0:00:12]}  h6 {[%clk 0:00:18]} 32. h3 {[%clk 0:00:11]}  Rf6 {[%clk 0:00:17]} 33. a4 {[%clk 0:00:10]}  Rff8 {[%clk 0:00:12]} 34. a5 {[%clk 0:00:10]}  Rf6 {[%clk 0:00:10]} 35. b6 {[%clk 0:00:10]}  axb6 {[%clk 0:00:11]} 36. axb6 {[%clk 0:00:11]}  Rb8 {[%clk 0:00:11]} 37. Rc6 {[%clk 0:00:07]}  Rd8 {[%clk 0:00:09]} 38. b7 {[%clk 0:00:08]}  Rxd7 {[%clk 0:00:09]} 39. b8=Q+ {[%clk 0:00:08]}  Rd8 {[%clk 0:00:08]} 40. Qb1 {[%clk 0:00:06]}  Rff8 {[%clk 0:00:06]} 41. Rc7 {[%clk 0:00:06]}  Qh4 {[%clk 0:00:04]} 42. e7 {[%clk 0:00:05]}  Rfe8 {[%clk 0:00:04]} 43. exd8=Q {[%clk 0:00:05]}  Rxd8 {[%clk 0:00:05]} 44. Qxg7# {[%clk 0:00:06]} 1-0


[Site "https://www.chess.com"]

[Event "Titled Tuesday Blitz January 17 Early 2023"]
[White "Odegov, Artem"]
[Black "Mrudul Dehankar"]
[WhiteFideId "34183644"]
[BlackFideId "25096990"]
[WhiteElo "2261"]
[BlackElo "2030"]
[Result "1-0"]
[Round "04"]
[TimeControl "180+2"]
[Date "2023.01.17"]
[WhiteClock "0:00:51"]
[BlackClock "0:00:08"]

1. d4 {[%clk 0:03:00]}  Nf6 {[%clk 0:02:57]} 2. c4 {[%clk 0:03:00]}  e6 {[%clk 0:02:55]} 3. Nf3 {[%clk 0:03:00]}  Bb4+ {[%clk 0:02:53]} 4. Nbd2 {[%clk 0:02:59]}  b6 {[%clk 0:02:50]} 5. a3 {[%clk 0:02:57]}  Bxd2+ {[%clk 0:02:50]} 6. Qxd2 {[%clk 0:02:57]}  Bb7 {[%clk 0:02:50]} 7. e3 {[%clk 0:02:58]}  O-O {[%clk 0:02:49]} 8. Bd3 {[%clk 0:02:57]}  Ne4 {[%clk 0:02:48]} 9. Qc2 {[%clk 0:02:58]}  f5 {[%clk 0:02:49]} 10. O-O {[%clk 0:02:58]}  d6 {[%clk 0:02:49]} 11. Nd2 {[%clk 0:02:58]}  Nxd2 {[%clk 0:02:30]} 12. Bxd2 {[%clk 0:02:59]}  Nd7 {[%clk 0:02:30]} 13. Rae1 {[%clk 0:02:56]}  Qg5 {[%clk 0:02:09]} 14. e4 {[%clk 0:02:50]}  f4 {[%clk 0:02:09]} 15. f3 {[%clk 0:02:49]}  e5 {[%clk 0:02:09]} 16. Bc3 {[%clk 0:02:43]}  Rf6 {[%clk 0:02:03]} 17. b4 {[%clk 0:02:41]}  Rh6 {[%clk 0:02:03]} 18. Rf2 {[%clk 0:02:10]}  Qh4 {[%clk 0:01:50]} 19. h3 {[%clk 0:02:10]}  Qg5 {[%clk 0:01:42]} 20. Kf1 {[%clk 0:02:10]}  Nf6 {[%clk 0:01:34]} 21. Ke2 {[%clk 0:02:09]}  Nd7 {[%clk 0:01:11]} 22. Kd1 {[%clk 0:02:02]}  exd4 {[%clk 0:01:07]} 23. Bxd4 {[%clk 0:02:03]}  c5 {[%clk 0:01:08]} 24. Bb2 {[%clk 0:02:01]}  Ne5 {[%clk 0:01:07]} 25. Kc1 {[%clk 0:01:50]}  cxb4 {[%clk 0:01:00]} 26. axb4 {[%clk 0:01:50]}  Rc8 {[%clk 0:01:00]} 27. Kb1 {[%clk 0:01:49]}  Re6 {[%clk 0:00:57]} 28. Rd1 {[%clk 0:01:46]}  Ba6 {[%clk 0:00:45]} 29. Bxe5 {[%clk 0:01:07]}  Qxe5 {[%clk 0:00:25]} 30. Bf1 {[%clk 0:01:07]}  Re7 {[%clk 0:00:20]} 31. Qb3 {[%clk 0:01:01]}  Kh8 {[%clk 0:00:18]} 32. Rfd2 {[%clk 0:00:59]}  Rd7 {[%clk 0:00:13]} 33. Qa4 {[%clk 0:00:55]}  b5 {[%clk 0:00:11]} 34. Qxa6 {[%clk 0:00:53]}  bxc4 {[%clk 0:00:08]} 35. Qxc8+ {[%clk 0:00:51]} 1-0


[Site "https://www.chess.com"]

[Event "Titled Tuesday Blitz January 17 Early 2023"]
[White "Le Ruyet, Leopold"]
[Black "Todorovic, Bojan"]
[WhiteFideId "645923"]
[BlackFideId "917087"]
[WhiteElo "2245"]
[BlackElo "2195"]
[Result "1-0"]
[Round "04"]
[TimeControl "180+2"]
[Date "2023.01.17"]
[WhiteClock "0:01:54"]
[BlackClock "0:01:08"]

1. e4 {[%clk 0:03:00]}  c5 {[%clk 0:02:58]} 2. Nc3 {[%clk 0:03:00]}  a6 {[%clk 0:02:57]} 3. g3 {[%clk 0:02:57]}  b5 {[%clk 0:02:56]} 4. Bg2 {[%clk 0:02:58]}  Bb7 {[%clk 0:02:56]} 5. Nge2 {[%clk 0:02:54]}  e6 {[%clk 0:02:54]} 6. O-O {[%clk 0:02:53]}  d6 {[%clk 0:02:42]} 7. d4 {[%clk 0:02:53]}  cxd4 {[%clk 0:02:40]} 8. Nxd4 {[%clk 0:02:54]}  Nf6 {[%clk 0:02:24]} 9. Re1 {[%clk 0:02:54]}  Qc7 {[%clk 0:02:19]} 10. a4 {[%clk 0:02:50]}  b4 {[%clk 0:02:15]} 11. Nd5 {[%clk 0:02:50]}  exd5 {[%clk 0:02:08]} 12. exd5+ {[%clk 0:02:50]}  Kd8 {[%clk 0:02:08]} 13. Bg5 {[%clk 0:02:48]}  Be7 {[%clk 0:02:03]} 14. Nf5 {[%clk 0:02:45]}  Bf8 {[%clk 0:02:01]} 15. Qd4 {[%clk 0:02:42]}  Nd7 {[%clk 0:01:59]} 16. Nh6 {[%clk 0:02:13]}  Ne5 {[%clk 0:01:42]} 17. f4 {[%clk 0:02:08]}  Ng6 {[%clk 0:01:16]} 18. Bxf6+ {[%clk 0:02:03]}  gxf6 {[%clk 0:01:16]} 19. Qxf6+ {[%clk 0:02:01]}  Be7 {[%clk 0:01:15]} 20. Nxf7+ {[%clk 0:01:58]}  Ke8 {[%clk 0:01:08]} 21. Nxd6+ {[%clk 0:01:54]} 1-0


[Site "https://www.chess.com"]

[Event "Titled Tuesday Blitz January 17 Early 2023"]
[White "Alfaro, William"]
[Black "Janaszak, Dawid"]
[WhiteFideId "6100457"]
[BlackFideId "1119206"]
[WhiteElo "2134"]
[BlackElo "2316"]
[Result "0-1"]
[Round "04"]
[TimeControl "180+2"]
[Date "2023.01.17"]
[WhiteClock "0:01:01"]
[BlackClock "0:01:05"]

1. Nf3 {[%clk 0:03:00]}  g6 {[%clk 0:02:55]} 2. g3 {[%clk 0:03:00]}  Bg7 {[%clk 0:02:50]} 3. Bg2 {[%clk 0:03:01]}  c5 {[%clk 0:02:49]} 4. d3 {[%clk 0:03:02]}  Nc6 {[%clk 0:02:49]} 5. O-O {[%clk 0:03:02]}  e5 {[%clk 0:02:49]} 6. e4 {[%clk 0:03:03]}  Nge7 {[%clk 0:02:48]} 7. Bg5 {[%clk 0:03:03]}  h6 {[%clk 0:02:48]} 8. Be3 {[%clk 0:03:01]}  d6 {[%clk 0:02:48]} 9. Nc3 {[%clk 0:03:00]}  f5 {[%clk 0:02:46]} 10. Qd2 {[%clk 0:02:58]}  g5 {[%clk 0:02:44]} 11. exf5 {[%clk 0:02:52]}  Bxf5 {[%clk 0:02:44]} 12. h4 {[%clk 0:02:51]}  Qd7 {[%clk 0:02:39]} 13. hxg5 {[%clk 0:02:41]}  hxg5 {[%clk 0:02:36]} 14. Bxg5 {[%clk 0:02:40]}  Bh3 {[%clk 0:02:33]} 15. Nh4 {[%clk 0:02:39]}  Bxg2 {[%clk 0:02:30]} 16. Kxg2 {[%clk 0:02:39]}  O-O-O {[%clk 0:02:28]} 17. Ne4 {[%clk 0:02:32]}  Rdf8 {[%clk 0:02:17]} 18. c3 {[%clk 0:02:31]}  Kc7 {[%clk 0:02:10]} 19. Qe3 {[%clk 0:02:29]}  Qe6 {[%clk 0:01:55]} 20. Bxe7 {[%clk 0:02:09]}  Nxe7 {[%clk 0:01:52]} 21. b4 {[%clk 0:02:03]}  Bh6 {[%clk 0:01:42]} 22. Qe2 {[%clk 0:01:55]}  cxb4 {[%clk 0:01:24]} 23. cxb4 {[%clk 0:01:54]}  Kb8 {[%clk 0:01:22]} 24. Rae1 {[%clk 0:01:45]}  Nc6 {[%clk 0:01:18]} 25. Qb2 {[%clk 0:01:38]}  Nd4 {[%clk 0:01:10]} 26. Nd2 {[%clk 0:01:27]}  Bxd2 {[%clk 0:01:07]} 27. Qxd2 {[%clk 0:01:25]}  Rxh4 {[%clk 0:01:06]} 28. gxh4 {[%clk 0:01:01]}  Qg4+ {[%clk 0:01:05]} 0-1


[Site "https://www.chess.com"]

[Event "Titled Tuesday Blitz January 17 Early 2023"]
[White "parintele_chess"]
[Black "Goldin, Alexander"]
[BlackFideId "2019540"]
[WhiteElo "2259"]
[BlackElo "2542"]
[Result "0-1"]
[Round "04"]
[TimeControl "180+2"]
[Date "2023.01.17"]
[WhiteClock "0:00:02"]
[BlackClock "0:00:23"]

1. d4 {[%clk 0:02:59]}  d5 {[%clk 0:02:59]} 2. Bf4 {[%clk 0:02:59]}  c5 {[%clk 0:02:58]} 3. e3 {[%clk 0:02:59]}  Nc6 {[%clk 0:02:57]} 4. Nf3 {[%clk 0:02:59]}  cxd4 {[%clk 0:02:55]} 5. exd4 {[%clk 0:02:58]}  Bg4 {[%clk 0:02:55]} 6. Be2 {[%clk 0:02:57]}  e6 {[%clk 0:02:54]} 7. O-O {[%clk 0:02:55]}  Bd6 {[%clk 0:02:54]} 8. Bxd6 {[%clk 0:02:45]}  Qxd6 {[%clk 0:02:54]} 9. c3 {[%clk 0:02:36]}  Nge7 {[%clk 0:02:53]} 10. Nbd2 {[%clk 0:02:32]}  O-O {[%clk 0:02:53]} 11. Ne5 {[%clk 0:02:28]}  Bxe2 {[%clk 0:02:47]} 12. Qxe2 {[%clk 0:02:27]}  Rab8 {[%clk 0:02:47]} 13. Ndf3 {[%clk 0:02:22]}  b5 {[%clk 0:02:43]} 14. a3 {[%clk 0:02:10]}  Ng6 {[%clk 0:02:25]} 15. Nxc6 {[%clk 0:02:03]}  Qxc6 {[%clk 0:02:26]} 16. Ne5 {[%clk 0:02:02]}  Nxe5 {[%clk 0:02:26]} 17. Qxe5 {[%clk 0:02:01]}  a5 {[%clk 0:02:25]} 18. Rae1 {[%clk 0:01:41]}  b4 {[%clk 0:02:24]} 19. axb4 {[%clk 0:01:41]}  axb4 {[%clk 0:02:24]} 20. Re3 {[%clk 0:01:41]}  bxc3 {[%clk 0:01:59]} 21. bxc3 {[%clk 0:01:42]}  Rb3 {[%clk 0:01:52]} 22. Rc1 {[%clk 0:01:27]}  Rfb8 {[%clk 0:01:49]} 23. h4 {[%clk 0:01:23]}  h6 {[%clk 0:01:18]} 24. Rg3 {[%clk 0:01:02]}  g6 {[%clk 0:01:17]} 25. h5 {[%clk 0:00:58]}  g5 {[%clk 0:01:17]} 26. Qf6 {[%clk 0:00:42]}  Rb1 {[%clk 0:00:32]} 27. Rxb1 {[%clk 0:00:41]}  Rxb1+ {[%clk 0:00:33]} 28. Kh2 {[%clk 0:00:41]}  Qc7 {[%clk 0:00:34]} 29. Qxh6 {[%clk 0:00:38]}  Qf4 {[%clk 0:00:34]} 30. Qxg5+ {[%clk 0:00:27]}  Qxg5 {[%clk 0:00:34]} 31. Rxg5+ {[%clk 0:00:28]}  Kh7 {[%clk 0:00:34]} 32. Rg3 {[%clk 0:00:14]}  Kh6 {[%clk 0:00:29]} 33. Rf3 {[%clk 0:00:14]}  f5 {[%clk 0:00:29]} 34. Re3 {[%clk 0:00:14]}  Rb6 {[%clk 0:00:29]} 35. Kg3 {[%clk 0:00:11]}  Kg5 {[%clk 0:00:30]} 36. Re1 {[%clk 0:00:02]}  Rc6 {[%clk 0:00:23]} 0-1


[Site "https://www.chess.com"]

[Event "Titled Tuesday Blitz January 17 Early 2023"]
[White "Avazkhonov, Alikhon"]
[Black "Bacrot, Etienne"]
[WhiteFideId "14208504"]
[BlackFideId "605506"]
[WhiteElo "1538"]
[BlackElo "2667"]
[Result "0-1"]
[Round "04"]
[TimeControl "180+2"]
[Date "2023.01.17"]
[WhiteClock "0:00:05"]
[BlackClock "0:01:13"]

1. d4 {[%clk 0:03:00]}  Nf6 {[%clk 0:03:00]} 2. c4 {[%clk 0:03:00]}  g6 {[%clk 0:03:00]} 3. Nc3 {[%clk 0:03:01]}  Bg7 {[%clk 0:03:01]} 4. e4 {[%clk 0:03:00]}  d6 {[%clk 0:03:02]} 5. f3 {[%clk 0:03:01]}  O-O {[%clk 0:03:02]} 6. Be3 {[%clk 0:03:02]}  e5 {[%clk 0:03:02]} 7. d5 {[%clk 0:02:51]}  a5 {[%clk 0:03:02]} 8. Qd2 {[%clk 0:02:50]}  a4 {[%clk 0:03:01]} 9. O-O-O {[%clk 0:02:40]}  Na6 {[%clk 0:03:01]} 10. Nxa4 {[%clk 0:02:21]}  Nd7 {[%clk 0:03:01]} 11. Kb1 {[%clk 0:02:20]}  f5 {[%clk 0:03:01]} 12. Nc3 {[%clk 0:02:14]}  Nac5 {[%clk 0:02:56]} 13. h4 {[%clk 0:02:09]}  Nf6 {[%clk 0:02:52]} 14. Bg5 {[%clk 0:01:41]}  Qe8 {[%clk 0:02:47]} 15. Bd3 {[%clk 0:01:13]}  Nh5 {[%clk 0:02:37]} 16. Be3 {[%clk 0:00:42]}  Ng3 {[%clk 0:02:34]} 17. Rh2 {[%clk 0:00:41]}  fxe4 {[%clk 0:02:28]} 18. fxe4 {[%clk 0:00:37]}  Bg4 {[%clk 0:02:28]} 19. Nge2 {[%clk 0:00:30]}  Bxe2 {[%clk 0:02:18]} 20. Bxe2 {[%clk 0:00:25]}  Ncxe4 {[%clk 0:02:14]} 21. Nxe4 {[%clk 0:00:26]}  Nxe4 {[%clk 0:02:14]} 22. Qc2 {[%clk 0:00:26]}  Ng3 {[%clk 0:02:10]} 23. Bg4 {[%clk 0:00:24]}  Nf5 {[%clk 0:02:03]} 24. Bf2 {[%clk 0:00:22]}  e4 {[%clk 0:02:01]} 25. Re1 {[%clk 0:00:20]}  Qe5 {[%clk 0:02:01]} 26. Rh3 {[%clk 0:00:18]}  Rfe8 {[%clk 0:01:57]} 27. h5 {[%clk 0:00:14]}  e3 {[%clk 0:01:31]} 28. Bxe3 {[%clk 0:00:14]}  Ra3 {[%clk 0:01:31]} 29. Bxf5 {[%clk 0:00:12]}  gxf5 {[%clk 0:01:30]} 30. Qd2 {[%clk 0:00:07]}  Qe4+ {[%clk 0:01:20]} 31. Ka1 {[%clk 0:00:05]}  Rea8 {[%clk 0:01:13]} 0-1


[Site "https://www.chess.com"]

[Event "Titled Tuesday Blitz January 17 Early 2023"]
[White "Donskov, Anatoly"]
[Black "Arabidze, Meri"]
[WhiteFideId "24143413"]
[BlackFideId "13604040"]
[WhiteElo "2279"]
[BlackElo "2441"]
[Result "1-0"]
[Round "04"]
[TimeControl "180+2"]
[Date "2023.01.17"]
[WhiteClock "0:00:10"]
[BlackClock "0:00:08"]

1. e4 {[%clk 0:03:00]}  c5 {[%clk 0:03:00]} 2. Nf3 {[%clk 0:02:59]}  e6 {[%clk 0:03:01]} 3. d4 {[%clk 0:02:59]}  cxd4 {[%clk 0:03:01]} 4. Nxd4 {[%clk 0:03:00]}  Nc6 {[%clk 0:03:02]} 5. Nc3 {[%clk 0:03:01]}  a6 {[%clk 0:03:03]} 6. Be3 {[%clk 0:02:57]}  Nf6 {[%clk 0:03:03]} 7. a3 {[%clk 0:02:56]}  Qc7 {[%clk 0:03:02]} 8. f4 {[%clk 0:02:52]}  d6 {[%clk 0:03:02]} 9. Qf3 {[%clk 0:02:51]}  g6 {[%clk 0:03:00]} 10. O-O-O {[%clk 0:02:50]}  Bd7 {[%clk 0:02:44]} 11. Kb1 {[%clk 0:02:42]}  Rc8 {[%clk 0:02:38]} 12. Be2 {[%clk 0:02:17]}  Qb8 {[%clk 0:02:33]} 13. g4 {[%clk 0:02:06]}  Bg7 {[%clk 0:02:33]} 14. g5 {[%clk 0:01:55]}  Nh5 {[%clk 0:02:33]} 15. f5 {[%clk 0:01:53]}  Bxd4 {[%clk 0:02:21]} 16. Bxd4 {[%clk 0:01:41]}  Nxd4 {[%clk 0:02:18]} 17. Rxd4 {[%clk 0:01:41]}  e5 {[%clk 0:01:51]} 18. Rd2 {[%clk 0:01:38]}  Nf4 {[%clk 0:01:51]} 19. f6 {[%clk 0:01:15]}  Be6 {[%clk 0:01:47]} 20. Rhd1 {[%clk 0:01:02]}  Rc6 {[%clk 0:01:45]} 21. Qg3 {[%clk 0:00:48]}  h6 {[%clk 0:01:44]} 22. gxh6 {[%clk 0:00:33]}  Rxh6 {[%clk 0:01:43]} 23. Bg4 {[%clk 0:00:33]}  Qc8 {[%clk 0:01:25]} 24. Bxe6 {[%clk 0:00:29]}  Qxe6 {[%clk 0:01:26]} 25. Nd5 {[%clk 0:00:18]}  Nh5 {[%clk 0:00:51]} 26. Qe3 {[%clk 0:00:18]}  Rh8 {[%clk 0:00:40]} 27. Qa7 {[%clk 0:00:17]}  Qd7 {[%clk 0:00:25]} 28. Ne7 {[%clk 0:00:17]}  Nxf6 {[%clk 0:00:11]} 29. Nxc6 {[%clk 0:00:16]}  bxc6 {[%clk 0:00:07]} 30. Qa8+ {[%clk 0:00:12]}  Qd8 {[%clk 0:00:03]} 31. Qxc6+ {[%clk 0:00:12]}  Qd7 {[%clk 0:00:02]} 32. Qa8+ {[%clk 0:00:12]}  Qd8 {[%clk 0:00:02]} 33. Qxa6 {[%clk 0:00:13]}  Nxe4 {[%clk 0:00:02]} 34. Qc6+ {[%clk 0:00:12]}  Kf8 {[%clk 0:00:02]} 35. Qxe4 {[%clk 0:00:12]}  Kg7 {[%clk 0:00:03]} 36. Rxd6 {[%clk 0:00:12]}  Qg5 {[%clk 0:00:03]} 37. R6d5 {[%clk 0:00:11]}  Rh5 {[%clk 0:00:04]} 38. Re1 {[%clk 0:00:10]}  Qh4 {[%clk 0:00:04]} 39. Rxe5 {[%clk 0:00:10]}  Qf2 {[%clk 0:00:02]} 40. Rxh5 {[%clk 0:00:08]}  gxh5 {[%clk 0:00:03]} 41. Qe5+ {[%clk 0:00:09]}  f6 {[%clk 0:00:03]} 42. Qe7+ {[%clk 0:00:09]}  Kg6 {[%clk 0:00:02]} 43. Qe4+ {[%clk 0:00:08]}  Kg5 {[%clk 0:00:03]} 44. Qe3+ {[%clk 0:00:09]}  Qxe3 {[%clk 0:00:03]} 45. Rxe3 {[%clk 0:00:10]}  f5 {[%clk 0:00:03]} 46. Kc1 {[%clk 0:00:08]}  f4 {[%clk 0:00:04]} 47. Rd3 {[%clk 0:00:09]}  Kg4 {[%clk 0:00:05]} 48. Kd1 {[%clk 0:00:09]}  f3 {[%clk 0:00:06]} 49. Ke1 {[%clk 0:00:10]}  h4 {[%clk 0:00:07]} 50. Kf2 {[%clk 0:00:10]}  h3 {[%clk 0:00:08]} 51. Rxf3 {[%clk 0:00:10]} 1-0


[Site "https://www.chess.com"]